bitfinex-derivatives/quotes_BNBF0:USTF0_20250221
["timestamp","ask_amount","ask_price","bid_price","bid_amount"]
[1740136148226,3.23141474,661.68,660.47,1.12546899]
[1740136148429,3.23141474,661.67,660.47,1.12546899]
[1740136148629,2.43278025,661.67,660.47,1.12546899]
[1740136149130,2.43278025,661.67,660.37,1.12546899]
[1740136149325,3.23221225,661.66,660.37,1.12546899]
[1740136149630,2.43278025,661.67,660.37,1.12546899]
[1740136150032,3.23211383,661.66,660.37,1.12546899]
[1740136150331,2.43278025,661.65,660.37,1.12546899]
[1740136150927,0.30227918,661.64,660.37,1.12546899]
[1740136151531,2.43278025,661.63,660.36,1.12546899]
[1740136151931,0.30228832,661.62,660.36,1.12546899]
[1740136153125,2.43278025,661.61,660.36,1.12546899]
[1740136153331,0.30229746,661.6,660.11,1.12546899]
[1740136153526,0.30229746,661.6,660.12,0.30297521]
[1740136153730,1.57956252,661.59,660.12,0.30297521]
[1740136154025,0.30230659,661.58,660.12,0.30297521]
[1740136154834,2.43278025,661.57,660.12,0.30297521]
[1740136155028,0.30231573,661.56,660.12,0.30297521]
[1740136156633,2.43278025,661.55,660.12,0.30297521]
[1740136157634,1.169,661.54,660.12,0.30297521]
[1740136158635,2.43278025,661.53,660.12,0.30297521]
[1740136160139,2.43278025,661.52,660.12,0.30297521]
[1740136162138,2.43278025,661.51,660.12,0.30297521]
[1740136163343,2.43278025,661.5,660.12,0.30297521]
[1740136164141,1.57970592,661.49,660.12,0.30297521]
[1740136166536,1.88205365,661.49,660.12,0.30297521]
[1740136166845,0.3023523,661.48,660.12,0.30297521]
[1740136200669,2.44158429,661.47,660.12,0.30297521]
[1740136200869,0.30236144,661.46,660.12,0.30297521]
[1740136202271,2.44158429,661.45,660.12,0.30297521]
[1740136202474,3.2444353,661.44,660.12,0.30297521]
[1740136202771,3.54681045,661.43,660.12,0.30297521]
[1740136202975,3.2444353,661.42,660.12,0.30297521]
[1740136203168,3.2444353,661.41,660.12,0.30297521]
[1740136203370,3.2444353,661.4,660.12,0.30297521]
[1740136203573,3.2444353,661.39,660.12,0.30297521]
[1740136203774,3.2444353,661.38,660.12,0.30297521]
[1740136203976,5.68601959,661.37,660.12,0.30297521]
[1740136204176,3.2444353,661.36,660.12,0.30297521]
[1740136204475,3.2444353,661.35,660.12,0.30297521]
[1740136204675,2.44158429,661.37,660.12,0.30297521]
[1740136204676,3.2444353,661.34,660.12,0.30297521]
[1740136204873,3.2444353,661.33,660.12,0.30297521]
[1740136205178,2.44158429,661.37,660.2,1.12546899]
[1740136205179,3.2444353,661.32,660.2,1.12546899]
[1740136205476,3.2444353,661.31,660.2,1.12546899]
[1740136205778,3.2444353,661.3,660.2,1.12546899]
[1740136206075,3.2444353,661.29,660.2,1.12546899]
[1740136206275,3.2444353,661.28,660.2,1.12546899]
[1740136206478,3.2444353,661.27,660.2,1.12546899]
[1740136206675,2.44158429,661.31,660.21,0.30293391]
[1740136207376,1.57989717,661.4,660.21,0.30293391]
[1740136208074,1.57989717,661.4,660.24,1.12546899]
[1740136210975,1.57989717,661.4,660.21,0.30293391]
[1740136212173,1.376,661.39,660.21,0.30293391]
[1740136213277,2.44684511,661.38,660.21,0.30293391]
[1740136214879,5.6971661,661.37,660.21,0.30293391]
[1740136215077,3.25032099,661.36,660.21,0.30293391]
[1740136215280,3.25032099,661.35,660.21,0.30293391]
[1740136215476,3.25032099,661.34,660.21,0.30293391]
[1740136215675,3.25032099,661.33,660.21,0.30293391]
[1740136215876,3.25032099,661.32,660.21,0.30293391]
[1740136216075,3.25032099,661.31,660.21,0.30293391]
[1740136216275,3.25032099,661.3,660.21,0.30293391]
[1740136216574,1.57983142,661.32,660.21,0.30293391]
[1740136216575,3.25032099,661.29,660.21,0.30293391]
[1740136216778,3.25032099,661.28,660.21,0.30293391]
[1740136216979,3.25032099,661.27,660.21,0.30293391]
[1740136217177,3.25032099,661.26,660.21,0.30293391]
[1740136217484,3.25032099,661.25,660.21,0.30293391]
[1740136217784,2.44684511,661.29,660.21,0.30293391]
[1740136218283,2.44684511,661.29,660.24,1.12546899]
[1740136218482,2.44684511,661.28,660.24,1.12546899]
[1740136220285,2.44684511,661.27,660.24,1.12546899]
[1740136220883,2.44684511,661.27,660.21,0.30293391]
[1740136221885,1.57983142,661.32,660.21,0.30293391]
[1740136222277,2.44916206,661.31,660.21,0.30293391]
[1740136223879,1.57983142,661.32,660.21,0.30293391]
[1740136223880,2.44916206,661.3,660.21,0.30293391]
[1740136225185,2.44916206,661.29,660.21,0.30293391]
[1740136226784,2.44916206,661.28,660.21,0.30293391]
[1740136228184,3.25354183,661.27,660.21,0.30293391]
[1740136228387,2.44916206,661.27,660.21,0.30293391]
[1740136228588,3.25351259,661.26,660.21,0.30293391]
[1740136228782,3.25351259,661.25,660.21,0.30293391]
[1740136228988,2.44916206,661.27,660.21,0.30293391]
[1740136229184,3.25358252,661.26,660.21,0.30293391]
[1740136229389,3.25358252,661.25,660.21,0.30293391]
[1740136229588,3.25358252,661.24,660.21,0.30293391]
[1740136229790,3.25358252,661.23,660.21,0.30293391]
[1740136229989,2.44916206,661.27,660.21,0.30293391]
[1740136230182,2.44916206,661.23,660.21,0.30293391]
[1740136231188,2.44916206,661.22,660.37,1.12546899]
[1740136232892,3.25121479,661.21,660.37,1.12546899]
[1740136233095,2.44916206,661.22,660.37,1.12546899]
[1740136233292,5.70029644,661.21,660.37,1.12546899]
[1740136233495,2.44916206,661.21,660.37,1.12546899]
[1740136233693,3.25125184,661.2,660.37,1.12546899]
[1740136233990,3.25125184,661.19,660.37,1.12546899]
[1740136234189,3.25125184,661.18,660.37,1.12546899]
[1740136234393,3.25125184,661.17,660.36,1.12546899]
[1740136234594,3.25125184,661.16,660.36,1.12546899]
[1740136234896,1.57978959,661.2,660.36,1.12546899]
[1740136235493,2.44916206,661.19,660.36,1.12546899]
[1740136236990,1.57978959,661.2,660.36,1.12546899]
[1740136237398,1.57978959,661.2,660.21,0.30293391]
[1740136237895,2.44743975,661.19,660.21,0.30293391]
[1740136239798,1.57978959,661.2,660.21,0.30293391]
[1740136244806,2.44834511,661.19,660.21,0.30293391]
[1740136246406,2.44834511,661.18,660.21,0.30293391]
[1740136248009,2.44834511,661.17,660.21,0.30293391]
[1740136249209,2.44834511,661.16,660.21,0.30293391]
[1740136250810,1.57978959,661.2,660.21,0.30293391]
[1740136251407,2.44872702,661.19,660.21,0.30293391]
[1740136253012,1.57978959,661.2,660.21,0.30293391]
[1740136255913,2.44892316,661.19,660.21,0.30293391]
[1740136257213,2.44892316,661.19,660.27,1.12546899]
[1740136257415,2.44892316,661.19,660.28,0.30290179]
[1740136257812,2.44892316,661.18,660.28,0.30290179]
[1740136258908,2.44892316,661.18,660.4,1.12546899]
[1740136259310,1.57978959,661.2,660.4,1.12546899]
[1740136261719,1.57978959,661.2,660.28,0.30290179]
[1740136265319,3.25208129,661.19,660.28,0.30290179]
[1740136265514,3.25208129,661.18,660.28,0.30290179]
[1740136265717,3.25208129,661.17,660.28,0.30290179]
[1740136265919,3.25208129,661.16,660.28,0.30290179]
[1740136266120,3.25208129,661.15,660.28,0.30290179]
[1740136266317,3.25208129,661.14,660.28,0.30290179]
[1740136266514,1.57978959,661.2,660.28,0.30290179]
[1740136266714,0.30237515,661.43,660.28,0.30290179]
[1740136267016,1.57996292,661.19,660.28,0.30290179]
[1740136267221,0.30237515,661.43,660.28,0.30290179]
[1740136267620,1.57943706,661.42,660.28,0.30290179]
[1740136271520,3.25099107,661.41,660.28,0.30290179]
[1740136271826,2.44841507,661.41,660.28,0.30290179]
[1740136272026,3.25068764,661.4,660.28,0.30290179]
[1740136272223,2.44841507,661.41,660.28,0.30290179]
[1740136272423,3.25062021,661.4,660.28,0.30290179]
[1740136272725,2.44841507,661.41,660.28,0.30290179]
[1740136273419,2.44841507,661.4,660.28,0.30290179]
[1740136273829,2.44841507,661.4,660.42,1.12546899]
[1740136274621,2.44841507,661.39,660.42,1.12546899]
[1740136276335,2.93543706,661.42,660.42,1.12546899]
[1740136276336,2.44841507,661.38,660.42,1.12546899]
[1740136276836,2.44841507,661.38,660.31,1.12546899]
[1740136277037,2.44841507,661.38,660.32,0.30288345]
[1740136277431,2.44841507,661.37,660.32,0.30288345]
[1740136278839,2.93543706,661.42,660.32,0.30288345]
[1740136286641,1.57943706,661.42,660.32,0.30288345]
[1740136293049,2.44947332,661.41,660.32,0.30288345]
[1740136294150,2.44947332,661.4,660.32,0.30288345]
[1740136296152,2.44947332,661.39,660.32,0.30288345]
[1740136297746,2.44947332,661.38,660.32,0.30288345]
[1740136299648,2.44947332,661.37,660.32,0.30288345]
[1740136300855,2.44947332,661.36,660.32,0.30288345]
[1740136301454,1.57989717,661.35,660.32,0.30288345]
[1740136302249,2.44947332,661.34,660.32,0.30288345]
[1740136303658,2.44947332,661.33,660.32,0.30288345]
[1740136305057,3.25445396,661.32,660.32,0.30288345]
[1740136305256,2.44947332,661.32,660.32,0.30288345]
[1740136305854,3.25409275,661.31,660.32,0.30288345]
[1740136306058,3.25409275,661.3,660.32,0.30288345]
[1740136306258,3.25409275,661.29,660.32,0.30288345]
[1740136306557,3.25392659,661.28,660.32,0.30288345]
[1740136306858,3.25392659,661.27,660.32,0.30288345]
[1740136307049,3.25374042,661.26,660.32,0.30288345]
[1740136307252,3.25374042,661.25,660.32,0.30288345]
[1740136308759,3.25378587,661.26,660.32,0.30288345]
[1740136308962,3.25378587,661.25,660.32,0.30288345]
[1740136309160,3.25378587,661.24,660.32,0.30288345]
[1740136309460,3.25378587,661.23,660.32,0.30288345]
[1740136309660,3.25493049,661.22,660.32,0.30288345]
[1740136309860,3.25493049,661.21,660.32,0.30288345]
[1740136310059,5.70440381,661.2,660.32,0.30288345]
[1740136310252,2.44947332,661.2,660.32,0.30288345]
[1740136311361,1.57989717,661.35,660.32,0.30288345]
[1740136311561,0.30237515,661.43,660.32,0.30288345]
[1740136311755,1.57989717,661.34,660.32,0.30288345]
[1740136312159,0.30237515,661.43,660.32,0.30288345]
[1740136312361,1.57990315,661.33,660.32,0.30288345]
[1740136312560,0.30237515,661.43,660.32,0.30288345]
[1740136312955,1.57990912,661.32,660.32,0.30288345]
[1740136313159,0.30237515,661.43,660.32,0.30288345]
[1740136313460,1.57958044,661.42,660.32,0.30288345]
[1740136313660,0.3023843,661.41,660.32,0.30288345]
[1740136325765,0.3023843,661.41,659.85,1.12546899]
[1740136327967,0.3023843,661.41,659.86,0.30309459]
[1740136330971,1.212,661.4,659.86,0.30309459]
[1740136331277,0.30239344,661.39,659.86,0.30309459]
[1740136332769,2.44947332,661.38,659.86,0.30309459]
[1740136332974,0.30240258,661.37,659.86,0.30309459]
[1740136333972,0.30240258,661.37,659.93,1.12546899]
[1740136334176,0.30240258,661.37,659.94,0.30305785]
[1740136334876,2.44721591,661.36,659.94,0.30305785]
[1740136335078,0.30241173,661.35,659.94,0.30305785]
[1740136335572,1.58008249,661.34,659.94,0.30305785]
[1740136335779,1.88249879,661.34,659.94,0.30305785]
[1740136336677,1.88249879,661.34,660.05,1.12546899]
[1740136339977,1.88249879,661.34,659.97,1.12546899]
[1740136340282,1.88249879,661.34,659.97,1.42851306]
[1740136341581,2.44866752,661.33,659.97,1.42851306]
[1740136343782,2.44866752,661.32,659.97,1.42851306]
[1740136344677,2.44866752,661.32,660.07,1.12546899]
[1740136345783,1.88249879,661.34,660.07,1.12546899]
[1740136347283,1.88249879,661.34,659.97,0.30304407]
[1740136348886,0.30242087,661.33,659.97,0.30304407]
[1740136349482,0.30242087,661.33,659.98,1.12546899]
[1740136352493,0.30242087,661.33,659.97,0.30304407]
[1740136356193,2.44952732,661.32,659.97,0.30304407]
[1740136356394,0.30243002,661.31,659.97,0.30304407]
[1740136358294,2.44952732,661.3,659.97,0.30304407]
[1740136358490,2.75196191,661.3,659.97,0.30304407]
[1740136359899,2.44952732,661.29,659.97,0.30304407]
[1740136360399,3.25124554,661.28,660.02,1.12546899]
[1740136360700,3.25124554,661.27,660.02,1.12546899]
[1740136360899,3.25124554,661.26,660.02,1.12546899]
[1740136361101,3.25124554,661.25,660.02,1.12546899]
[1740136361294,3.25124554,661.24,660.02,1.12546899]
[1740136361498,0.30245289,661.26,660.02,1.12546899]
[1740136361698,2.44952732,661.23,660.02,1.12546899]
[1740136362100,2.44952732,661.23,659.97,0.30304407]
[1740136362101,3.25061103,661.22,660.06,1.12546899]
[1740136362395,2.44952732,661.23,660.06,1.12546899]
[1740136362600,3.2503647,661.22,660.06,1.12546899]
[1740136362796,2.44952732,661.23,660.06,1.12546899]
[1740136363001,3.25032104,661.22,660.06,1.12546899]
[1740136363201,2.44952732,661.22,660.06,1.12546899]
[1740136364597,2.44952732,661.21,660.06,1.12546899]
[1740136364801,2.44952732,661.21,659.97,0.30304407]
[1740136364802,2.44952732,661.21,660.01,1.12546899]
[1740136365797,0.30245289,661.26,660.01,1.12546899]
[1740136365798,2.44952732,661.2,660.01,1.12546899]
[1740136366402,2.44952732,661.2,659.97,0.30304407]
[1740136367501,2.44952732,661.19,659.97,0.30304407]
[1740136369305,2.44952732,661.18,659.97,0.30304407]
[1740136369505,3.86552732,661.18,659.97,0.30304407]
[1740136370707,2.44952732,661.17,659.97,0.30304407]
[1740136371209,1.58034559,661.16,659.97,0.30304407]
[1740136373804,3.25042485,661.15,659.97,0.30304407]
[1740136374001,3.25042485,661.14,659.97,0.30304407]
[1740136374209,3.25042485,661.13,659.97,0.30304407]
[1740136374505,3.25042485,661.12,659.97,0.30304407]
[1740136374706,3.25042485,661.11,659.97,0.30304407]
[1740136374903,2.44952732,661.14,659.97,0.30304407]
[1740136375107,3.24992937,661.13,659.97,0.30304407]
[1740136375302,3.24992937,661.12,659.97,0.30304407]
[1740136375502,2.44952732,661.14,659.97,0.30304407]
[1740136375809,5.69935952,661.13,659.97,0.30304407]
[1740136376107,3.2498322,661.12,659.97,0.30304407]
[1740136376308,2.44952732,661.13,659.97,0.30304407]
[1740136376309,3.2498322,661.11,659.97,0.30304407]
[1740136376508,3.2498322,661.1,659.97,0.30304407]
[1740136376706,2.44952732,661.13,659.97,0.30304407]
[1740136376903,3.24960549,661.12,659.97,0.30304407]
[1740136377104,3.24960549,661.11,659.97,0.30304407]
[1740136377410,5.69913281,661.1,659.97,0.30304407]
[1740136377603,3.24960549,661.09,659.97,0.30304407]
[1740136377803,3.24956794,661.08,659.97,0.30304407]
[1740136378008,2.44952732,661.1,659.97,0.30304407]
[1740136378205,3.24968416,661.09,659.97,0.30304407]
[1740136378410,3.24968416,661.08,659.97,0.30304407]
[1740136378611,3.24968416,661.07,659.97,0.30304407]
[1740136378910,2.44952732,661.08,659.97,0.30304407]
[1740136378911,3.24968416,661.06,659.97,1.42851306]
[1740136379110,3.24968416,661.05,659.97,1.42851306]
[1740136379310,3.24968416,661.04,659.97,1.42851306]
[1740136379510,3.24968416,661.03,659.97,1.42851306]
[1740136379710,2.44952732,661.08,659.97,1.42851306]
[1740136379911,3.24906801,661.07,659.97,1.42851306]
[1740136380113,3.24906801,661.06,659.97,1.42851306]
[1740136380309,3.24906801,661.05,659.97,1.42851306]
[1740136380513,3.24906801,661.04,659.97,1.42851306]
[1740136380814,3.24924297,661.03,659.97,1.42851306]
[1740136381014,3.24924297,661.02,659.97,1.42851306]
[1740136381214,3.24923299,661.01,659.97,1.42851306]
[1740136381414,3.24923299,661.0,659.97,1.42851306]
[1740136381715,3.24923299,660.99,659.97,0.30304407]
[1740136381914,3.24923299,660.98,659.97,0.30304407]
[1740136382115,3.24923299,660.97,659.97,0.30304407]
[1740136382415,2.44952732,660.99,659.97,0.30304407]
[1740136382610,3.24894744,660.98,659.97,0.30304407]
[1740136382812,3.24894744,660.97,659.97,0.30304407]
[1740136383012,5.69848497,660.96,659.97,0.30304407]
[1740136383212,2.44952732,660.96,659.97,0.30304407]
[1740136384418,2.44952732,660.95,659.97,0.30304407]
[1740136385816,2.44952732,660.94,659.97,0.30304407]
[1740136387115,1.58052502,661.01,659.97,0.30304407]
[1740136396023,2.44952732,661.0,659.97,0.30304407]
[1740136397624,2.44952732,660.99,659.97,0.30304407]
[1740136398926,2.44952732,660.99,659.99,1.12546899]
[1740136399221,2.44952732,660.98,659.99,1.12546899]
[1740136400828,2.44952732,660.97,659.99,1.12546899]
[1740136401529,2.44952732,660.97,660.01,1.12546899]
[1740136402426,1.58052502,661.01,660.01,1.12546899]
[1740136402829,2.44672052,661.0,660.01,1.12546899]
[1740136404122,2.44672052,661.0,659.97,0.30304407]
[1740136404327,1.58052502,661.01,659.97,0.30304407]
[1740136408429,2.44668485,661.0,659.97,0.30304407]
[1740136410323,2.44668485,660.99,659.97,0.30304407]
[1740136412025,2.44668485,660.98,659.97,0.30304407]
[1740136413531,2.44668485,660.97,659.97,0.30304407]
[1740136415226,2.44668485,660.96,659.97,0.30304407]
[1740136416829,2.44668485,660.95,659.97,0.30304407]
[1740136417433,3.24996428,660.94,659.97,0.30304407]
[1740136417734,3.24996428,660.93,659.97,0.30304407]
[1740136417930,3.24996428,660.92,659.97,0.30304407]
[1740136418128,3.24996428,660.91,659.97,0.30304407]
[1740136418333,3.24996428,660.9,659.97,0.30304407]
[1740136418534,3.24996428,660.89,659.97,0.30304407]
[1740136418732,2.44668485,660.93,659.97,0.30304407]
[1740136418935,3.24981865,660.92,659.97,0.30304407]
[1740136419131,3.24981865,660.91,659.97,0.30304407]
[1740136419328,3.24981865,660.9,659.97,0.30304407]
[1740136419535,3.24981865,660.89,659.97,0.30304407]
[1740136419733,2.44668485,660.93,659.97,0.30304407]
[1740136419929,2.44668485,660.88,659.97,0.30304407]
[1740136420437,3.24995985,660.87,659.97,0.30304407]
[1740136420639,3.24995985,660.86,659.97,0.30304407]
[1740136420834,3.24995985,660.85,659.97,0.30304407]
[1740136421031,3.24995985,660.84,659.97,0.30304407]
[1740136421237,3.24995985,660.83,659.97,0.30304407]
[1740136421537,2.44668485,660.82,659.97,0.30304407]
[1740136423039,1.58080024,660.94,659.97,0.30304407]
[1740136423536,2.44717945,660.93,659.97,0.30304407]
[1740136425342,1.58080024,660.94,659.97,0.30304407]
[1740136426436,2.44732808,660.93,659.97,0.30304407]
[1740136427945,2.44732808,660.92,659.97,0.30304407]
[1740136429444,3.25138286,660.91,659.97,0.30304407]
[1740136429637,3.25138286,660.9,659.97,0.30304407]
[1740136429836,2.44732808,660.91,659.97,0.30304407]
[1740136431247,1.58080024,660.94,659.97,0.30304407]
[1740136436453,2.44732808,660.93,659.97,0.30304407]
[1740136437452,1.58080024,660.94,659.97,0.30304407]
[1740136438555,1.58080024,660.94,659.73,1.12546899]
[1740136438955,2.44817654,660.93,659.73,1.12546899]
[1740136439658,3.55306555,660.92,659.79,1.12546899]
[1740136439860,3.55307013,660.91,659.79,1.12546899]
[1740136440056,0.30261764,660.9,659.79,1.12546899]
[1740136441561,2.44817654,660.89,659.79,1.12546899]
[1740136441762,0.3026268,660.88,659.79,1.12546899]
[1740136442261,0.3026268,660.88,659.4,1.12546899]
[1740136442462,1.58116535,660.87,659.4,1.12546899]
[1740136442758,0.30263595,660.86,659.4,1.42877502]
[1740136442955,3.24912677,660.85,659.41,0.30330143]
[1740136443160,4.02934189,660.87,659.41,0.30330143]
[1740136443161,3.55177188,660.84,659.41,0.30330143]
[1740136443361,3.55177646,660.83,659.41,0.30330143]
[1740136443560,3.24912677,660.82,659.41,0.30330143]
[1740136443756,0.30264969,660.83,659.41,0.30330143]
[1740136444462,2.44817654,660.82,659.41,0.30330143]
[1740136446260,0.30264969,660.83,659.41,0.30330143]
[1740136456265,3.23731405,660.82,659.41,0.30330143]
[1740136456468,3.23731405,660.81,659.41,0.30330143]
[1740136456668,3.23731405,660.8,659.41,0.30330143]
[1740136456869,3.23731405,660.79,659.41,0.30330143]
[1740136457171,3.23731405,660.78,659.41,0.30330143]
[1740136457371,3.23731405,660.77,659.41,0.30330143]
[1740136457570,3.23731405,660.76,659.41,0.30330143]
[1740136457771,3.23731405,660.75,659.41,0.30330143]
[1740136457972,1.58136893,660.79,659.41,0.30330143]
[1740136458172,3.23650365,660.78,659.41,0.30330143]
[1740136458373,3.23650365,660.77,659.41,0.30330143]
[1740136458673,2.44817654,660.78,659.42,1.12546899]
[1740136458873,2.44817654,660.78,659.43,0.30329223]
[1740136460272,2.44817654,660.77,659.43,0.30329223]
[1740136462374,1.58136893,660.79,659.43,0.30329223]
[1740136466079,1.58136893,660.79,659.54,1.12546899]
[1740136467184,1.58136893,660.79,659.55,0.30323705]
[1740136470782,0.962,660.78,659.55,0.30323705]
[1740136471484,0.962,660.78,659.59,1.12546899]
[1740136471784,0.962,660.78,659.6,0.30321406]
[1740136481688,1.58136893,660.79,659.6,0.30321406]
[1740136489092,1.58136893,660.79,659.69,1.12546899]
[1740136492095,1.58136893,660.79,659.71,1.12546899]
[1740136494492,2.4411627,660.78,659.71,1.12546899]
[1740136495197,2.4411627,660.78,659.68,1.12546899]
[1740136496392,1.58136893,660.79,659.68,1.12546899]
[1740136497700,1.58136893,660.79,659.6,0.30321406]
[1740136498794,2.4411627,660.78,659.6,0.30321406]
[1740136500000,1.58136893,660.79,659.6,0.30321406]
[1740136501998,0.30264969,660.83,659.6,0.30321406]
[1740136502298,1.58112943,660.78,659.6,0.30321406]
[1740136507008,0.941,660.77,659.6,0.30321406]
[1740136508509,2.44433457,660.76,659.6,0.30321406]
[1740136509504,2.44433457,660.75,659.6,0.30321406]
[1740136510607,2.44433457,660.75,659.76,1.12546899]
[1740136511303,0.941,660.77,659.76,1.12546899]
[1740136512507,0.941,660.77,659.77,0.30313594]
[1740136522916,2.43830827,660.76,659.77,0.30313594]
[1740136524119,2.43830827,660.75,659.77,0.30313594]
[1740136525718,0.941,660.77,659.77,0.30313594]
[1740136526719,3.23714388,660.76,659.77,0.30313594]
[1740136526919,3.23714388,660.75,659.77,0.30313594]
[1740136527121,2.43755298,660.76,659.77,0.30313594]
[1740136527320,3.23721001,660.75,659.77,0.30313594]
[1740136527516,2.43755298,660.76,659.77,0.30313594]
[1740136527716,3.23709729,660.75,659.77,0.30313594]
[1740136527922,2.43755298,660.76,659.91,1.12546899]
[1740136528120,3.23703966,660.75,659.91,1.12546899]
[1740136528316,2.43755298,660.76,659.91,1.12546899]
[1740136528520,2.43755298,660.75,659.91,1.12546899]
[1740136530325,2.43755298,660.74,659.91,1.12546899]
[1740136530528,3.23958411,660.73,659.91,1.12546899]
[1740136530726,3.23958411,660.72,659.91,1.12546899]
[1740136530921,3.23958411,660.71,659.91,1.12546899]
[1740136531123,3.23958411,660.71,659.77,0.30313594]
[1740136531124,3.24014139,660.7,659.77,0.30313594]
[1740136531321,2.43755298,660.71,659.77,0.30313594]
[1740136531524,4.82105922,660.7,659.77,0.30313594]
[1740136531719,1.58087804,660.7,659.77,0.30313594]
[1740136532728,2.43755298,660.69,659.77,0.30313594]
[1740136534027,1.58087804,660.7,659.77,0.30313594]
[1740136540632,2.4373954,660.69,659.77,0.30313594]
[1740136541635,2.4373954,660.68,659.77,0.30313594]
[1740136543535,5.67413802,660.67,659.77,0.30313594]
[1740136543737,3.23674262,660.66,659.77,0.30313594]
[1740136543934,3.23674262,660.65,659.77,0.30313594]
[1740136544135,2.4373954,660.67,659.77,0.30313594]
[1740136544336,3.23711859,660.66,659.77,0.30313594]
[1740136544531,2.4373954,660.67,659.77,0.30313594]
[1740136545241,1.58087804,660.7,659.77,0.30313594]
[1740136545242,2.4373954,660.66,659.77,0.30313594]
[1740136546935,1.58087804,660.7,659.77,0.30313594]
[1740136552643,1.58087804,660.7,659.04,1.12546899]
[1740136552840,1.58087804,660.7,659.06,0.3034625]
[1740136554742,2.43560258,660.69,659.06,0.3034625]
[1740136554945,2.43560258,660.69,659.21,1.12546899]
[1740136555147,2.43560258,660.69,659.22,0.30338885]
[1740136556343,1.58087804,660.7,659.22,0.30338885]
[1740136557849,2.43560258,660.69,659.22,1.42885784]
[1740136559450,2.73832099,660.68,659.22,1.42885784]
[1740136559643,0.30272299,660.67,659.22,1.42885784]
[1740136560252,0.30272299,660.67,659.38,1.12546899]
[1740136563957,2.43560258,660.66,659.22,0.30338885]
[1740136565554,0.30272299,660.67,659.22,0.30338885]
[1740136565857,0.30272299,660.67,659.26,1.12546899]
[1740136566955,0.30272299,660.67,659.27,0.30336584]
[1740136570654,3.22394953,660.66,659.27,0.30336584]
[1740136570858,0.30272299,660.67,659.27,0.30336584]
[1740136571258,0.9,660.66,659.27,0.30336584]
[1740136571457,2.43560258,660.65,659.27,0.30336584]
[1740136572257,0.30273674,660.64,659.27,0.30336584]
[1740136572859,1.58220175,660.63,659.27,0.30336584]
[1740136573060,0.3027459,660.62,659.27,0.30336584]
[1740136586565,2.42695428,660.61,659.27,0.30336584]
[1740136587365,0.30275507,660.6,659.27,0.30336584]
[1740136587674,2.72970935,660.6,659.27,0.30336584]
[1740136588070,3.21745671,660.59,659.27,0.30336584]
[1740136588269,3.21745671,660.58,659.27,0.30336584]
[1740136588570,3.21745671,660.57,659.27,0.30336584]
[1740136588773,3.21745671,660.56,659.27,0.30336584]
[1740136589069,3.52023469,660.55,659.27,0.30336584]
[1740136589273,3.21745671,660.54,659.27,0.30336584]
[1740136589475,3.21745671,660.53,659.27,0.30336584]
[1740136589676,3.21745671,660.52,659.27,0.30336584]
[1740136589869,2.42695428,660.54,659.27,0.30336584]
[1740136590070,3.22239348,660.53,659.27,0.30336584]
[1740136590271,3.22239348,660.52,659.27,0.30336584]
[1740136590473,3.22239348,660.51,659.27,0.30336584]
[1740136590675,3.22239348,660.5,659.27,0.30336584]
[1740136590975,2.42695428,660.51,659.27,0.30336584]
[1740136591175,3.22275245,660.5,659.27,0.30336584]
[1740136591377,2.42695428,660.51,659.27,0.30336584]
[1740136591571,3.22327151,660.5,659.27,0.30336584]
[1740136591773,2.42695428,660.5,659.27,0.30336584]
[1740136593278,5.65160752,660.49,659.27,0.30336584]
[1740136593578,3.22465324,660.48,659.27,0.30336584]
[1740136593775,3.22465324,660.47,659.27,0.30336584]
[1740136593975,3.22465324,660.46,659.27,0.30336584]
[1740136594173,3.22465324,660.45,659.27,0.30336584]
[1740136594375,3.22465324,660.44,659.27,0.30336584]
[1740136594580,2.42695428,660.49,659.27,0.30336584]
[1740136594973,0.30277798,660.55,659.27,0.30336584]
[1740136595781,2.42896195,660.54,659.27,0.30336584]
[1740136597084,0.30277798,660.55,659.27,0.30336584]
[1740136599086,0.88,660.54,659.27,0.30336584]
[1740136613098,0.88,660.54,659.28,1.12546899]
[1740136613297,0.88,660.54,659.29,0.30335664]
[1740136619302,0.88,660.54,659.42,1.12546899]
[1740136619700,0.88,660.54,659.44,0.30328763]
[1740136620098,3.23935656,661.29,659.44,0.30328763]
[1740136620301,0.30244831,661.27,659.44,0.30328763]
[1740136620501,3.23935656,661.26,659.44,0.30328763]
[1740136620801,0.30246204,661.24,659.44,0.30328763]
[1740136621803,3.23243452,661.23,659.44,0.30328763]
[1740136622001,3.23243452,661.22,659.44,0.30328763]
[1740136622195,3.53491028,661.21,659.44,0.30328763]
[1740136622402,3.23243452,661.2,659.44,0.30328763]
[1740136622699,3.53491943,661.19,659.44,0.30328763]
[1740136623001,3.23243452,661.18,659.44,0.30328763]
[1740136623196,0.30248491,661.19,659.44,0.30328763]
[1740136624199,2.43055004,661.18,659.44,0.30328763]
[1740136625202,2.43055004,661.17,659.44,0.30328763]
[1740136625706,3.22798632,661.16,659.44,0.30328763]
[1740136625898,2.43055004,661.17,659.44,0.30328763]
[1740136626303,2.43055004,661.16,659.44,0.30328763]
[1740136627703,2.43055004,661.15,659.44,0.30328763]
[1740136628805,2.43055004,661.14,659.44,0.30328763]
[1740136630103,0.30248491,661.19,659.44,0.30328763]
[1740136630804,3.21853549,661.18,659.44,0.30328763]